Workbook

Sheet Sheet1
A2: Session Name
A3: Merged Sessions 2-3-2016, 2-50 PM
A5: Date Created | C5: Active Participants | E5: Total Participants
A6: 2016-02-03T14:51:08 | C6: 20 | E6: 20
A8: Average Score | C8: Questions
A9: 0 | C9: 34
A12: Results by Question
A14: 1. How would your family describe the man telling you about the questions? | G14: 1. How would your family describe the man telling you about the questions?
B16: Responses
B17: Percent | C17: Count
A18: a. He is too tall. | B18: 0 | C18: 0
A19: b. He is too short. | B19: 0.1000000015 | C19: 2
A20: c. He speaks Spanish very good for an American. | B20: 0.4499999881 | C20: 9
A21: d. He is kind. | B21: 0.4499999881 | C21: 9
A22: e. He seems nervous. | B22: 0 | C22: 0
A23: Totals | B23: =SUM(Sheet1!$B$18:$B$22) -> 0.9999999776 | C23: =SUM(Sheet1!$C$18:$C$22) -> 20
A31: 2. How would your family describe the woman also telling you about the questions? | G31: 2. How would your family describe the woman also telling you about the questions?
B33: Responses
B34: Percent | C34: Count
A35: a. She is too tall. | B35: 0 | C35: 0
A36: b. She is too short. | B36: 0 | C36: 0
A37: c. She speaks Spanish very good for an American. | B37: 0.1000000015 | C37: 2
A38: d. She is kind. | B38: 0.8999999762 | C38: 18
A39: e. She seems nervous. | B39: 0 | C39: 0
A40: Totals | B40: =SUM(Sheet1!$B$35:$B$39) -> 0.9999999776 | C40: =SUM(Sheet1!$C$35:$C$39) -> 20
A48: 3. How do you feel about taking this survey? | G48: 3. How do you feel about taking this survey?
B50: Responses
B51: Percent | C51: Count
A52: a. Very nervous. | B52: 0 | C52: 0
A53: b. A small amount of nervousness. | B53: 0.150000006 | C53: 3
A54: c. Not nervous at all. | B54: 0 | C54: 0
A55: d. Happy. | B55: 0.4499999881 | C55: 9
A56: e. Very happy. | B56: 0.400000006 | C56: 8
A57: Totals | B57: =SUM(Sheet1!$B$52:$B$56) -> 1 | C57: =SUM(Sheet1!$C$52:$C$56) -> 20
A65: 4. How large is your family? How many individuals are home at dinnertime? | G65: 4. How large is your family? How many individuals are home at dinnertime?
B67: Responses
B68: Percent | C68: Count
A69: a. Less than 5 people. | B69: 0.400000006 | C69: 8
A70: b. 5 people. | B70: 0.05000000075 | C70: 1
A71: c. 6 people. | B71: 0.1000000015 | C71: 2
A72: a. 7 people. | B72: 0.200000003 | C72: 4
A73: e. More than 7 people. | B73: 0.25 | C73: 5
A74: Totals | B74: =SUM(Sheet1!$B$69:$B$73) -> 1.000000011 | C74: =SUM(Sheet1!$C$69:$C$73) -> 20
A82: 5. How many children (less than 10 years old) are at home for dinner? | G82: 5. How many children (less than 10 years old) are at home for dinner?
B84: Responses
B85: Percent | C85: Count
A86: a. No children. | B86: 0.05000000075 | C86: 1
A87: b. 1 child. | B87: 0.3000000119 | C87: 6
A88: c. 2 children. | B88: 0.5 | C88: 10
A89: d. 3 children. | B89: 0.1000000015 | C89: 2
A90: e. 4 children or more. | B90: 0.05000000075 | C90: 1
A91: Totals | B91: =SUM(Sheet1!$B$86:$B$90) -> 1.000000015 | C91: =SUM(Sheet1!$C$86:$C$90) -> 20
A99: 6. How many fishermen are there in your family? | G99: 6. How many fishermen are there in your family?
B101: Responses
B102: Percent | C102: Count
A103: a. None. | B103: 0.05000000075 | C103: 1
A104: b. 1 | B104: 0.4499999881 | C104: 9
A105: c. 2 | B105: 0.3000000119 | C105: 6
A106: d. 3 | B106: 0.05000000075 | C106: 1
A107: e. More than 3. | B107: 0.150000006 | C107: 3
A108: Totals | B108: =SUM(Sheet1!$B$103:$B$107) -> 1.000000007 | C108: =SUM(Sheet1!$C$103:$C$107) -> 20
A116: 7. Do they fish for the family only or for selling to the market? | G116: 7. Do they fish for the family only or for selling to the market?
B118: Responses
B119: Percent | C119: Count
A120: a. Enough for family only. | B120: 0.05000000075 | C120: 1
A121: b. Enough for market only. | B121: 0.150000006 | C121: 3
A122: c. Enough for family and market. | B122: 0.3000000119 | C122: 6
A123: d. Not enough fish for both market and family. | B123: 0.5 | C123: 10
A124: e. No fisherman in family. | B124: 0 | C124: 0
A125: Totals | B125: =SUM(Sheet1!$B$120:$B$124) -> 1.000000019 | C125: =SUM(Sheet1!$C$120:$C$124) -> 20
A133: 8. What fishing gear do they use? | G133: 8. What fishing gear do they use?
B135: Responses
B136: Percent | C136: Count
A137: a. Long line. | B137: 0 | C137: 0
A138: b. Hand line. | B138: 0 | C138: 0
A139: c. Spears. | B139: 0.05000000075 | C139: 1
A140: d. Nets. | B140: 0.9499999881 | C140: 19
A141: e. No fisherman in family. | B141: 0 | C141: 0
A142: Totals | B142: =SUM(Sheet1!$B$137:$B$141) -> 0.9999999888 | C142: =SUM(Sheet1!$C$137:$C$141) -> 20
A150: 9. How much time is spent each day fishing? | G150: 9. How much time is spent each day fishing?
B152: Responses
B153: Percent | C153: Count
A154: a. 1 hour or less. | B154: 0 | C154: 0
A155: b. 1-2 hours. | B155: 0 | C155: 0
A156: c. 2-4 hours. | B156: 0.1000000015 | C156: 2
A157: d. More than 4 hours. | B157: 0.8999999762 | C157: 18
A158: e. No fisherman in family. | B158: 0 | C158: 0
A159: Totals | B159: =SUM(Sheet1!$B$154:$B$158) -> 0.9999999776 | C159: =SUM(Sheet1!$C$154:$C$158) -> 20
A167: 10. Is this more or less time spent than 5 years ago? | G167: 10. Is this more or less time spent than 5 years ago?
B169: Responses
B170: Percent | C170: Count
A171: a. Spending more time fishing. | B171: 1 | C171: 20
A172: b. Spending the same time fishing. | B172: 0 | C172: 0
A173: c. Spending less time fishing. | B173: 0 | C173: 0
A174: d. No longer fishing. | B174: 0 | C174: 0
A175: e. No fishermen in family. | B175: 0 | C175: 0
A176: Totals | B176: =SUM(Sheet1!$B$171:$B$175) -> 1 | C176: =SUM(Sheet1!$C$171:$C$175) -> 20
A184: 11. How often does the family eat seafood? | G184: 11. How often does the family eat seafood?
B186: Responses
B187: Percent | C187: Count
A188: a. Every day. | B188: 0.200000003 | C188: 4
A189: 2-3 veces por semana. | B189: 0.5 | C189: 10
A190: 1 vez por semana. | B190: 0.25 | C190: 5
A191: 1-2 veces por mes. | B191: 0.05000000075 | C191: 1
A192: No comemos pescado. | B192: 0 | C192: 0
A193: Totals | B193: =SUM(Sheet1!$B$188:$B$192) -> 1.000000004 | C193: =SUM(Sheet1!$C$188:$C$192) -> 20
A201: 12. Which is the most common type of seafood for your family meal? | G201: 12. Which is the most common type of seafood for your family meal?
B203: Responses
B204: Percent | C204: Count
A205: a. Finfish | B205: 0.9499999881 | C205: 19
A206: b. Shellfish (mussels, oysters). | B206: 0 | C206: 0
A207: c. Invertebrates (shrimp, lobster, crab). | B207: 0.05000000075 | C207: 1
A208: d. Canned fish or seafood. | B208: 0 | C208: 0
A209: e. Any other seafood. | B209: 0 | C209: 0
A210: Totals | B210: =SUM(Sheet1!$B$205:$B$209) -> 0.9999999888 | C210: =SUM(Sheet1!$C$205:$C$209) -> 20
A218: 13. How often do you buy seafood in the market? | G218: 13. How often do you buy seafood in the market?
B220: Responses
B221: Percent | C221: Count
A222: a. Every day. | B222: 0.05000000075 | C222: 1
A223: b. 2 – 3 times per week. | B223: 0.25 | C223: 5
A224: c. 1 time per week. | B224: 0.200000003 | C224: 4
A225: d. 1 – 2 times per month. | B225: 0.3000000119 | C225: 6
A226: e. Never buy fish from market. | B226: 0.200000003 | C226: 4
A227: Totals | B227: =SUM(Sheet1!$B$222:$B$226) -> 1.000000019 | C227: =SUM(Sheet1!$C$222:$C$226) -> 20
A235: 14. The ocean provides enough food for your family. | G235: 14. The ocean provides enough food for your family.
B237: Responses
B238: Percent | C238: Count
A239: a. Strongly agree | B239: 0.1000000015 | C239: 2
A240: b. Agree | B240: 0.1000000015 | C240: 2
A241: c. Unsure | B241: 0.5500000119 | C241: 11
A242: d. Disagree | B242: 0.150000006 | C242: 3
A243: e. Strongly disagree. | B243: 0.1000000015 | C243: 2
A244: Totals | B244: =SUM(Sheet1!$B$239:$B$243) -> 1.000000022 | C244: =SUM(Sheet1!$C$239:$C$243) -> 20
A252: 15. There is a future for fishermen in our community. | G252: 15. There is a future for fishermen in our community.
B254: Responses
B255: Percent | C255: Count
A256: a. Strongly agree | B256: 0.05000000075 | C256: 1
A257: b. Agree | B257: 0 | C257: 0
A258: c. Unsure | B258: 0.9499999881 | C258: 19
A259: d. Disagree | B259: 0 | C259: 0
A260: e. Strongly disagree. | B260: 0 | C260: 0
A261: Totals | B261: =SUM(Sheet1!$B$256:$B$260) -> 0.9999999888 | C261: =SUM(Sheet1!$C$256:$C$260) -> 20
A269: 16. Contamination has damaged our fisheries. | G269: 16. Contamination has damaged our fisheries.
B271: Responses
B272: Percent | C272: Count
A273: a. Strongly agree | B273: 0.8000000119 | C273: 16
A274: b. Agree | B274: 0.150000006 | C274: 3
A275: c. Unsure | B275: 0.05000000075 | C275: 1
A276: d. Disagree | B276: 0 | C276: 0
A277: e. Strongly disagree. | B277: 0 | C277: 0
A278: Totals | B278: =SUM(Sheet1!$B$273:$B$277) -> 1.000000019 | C278: =SUM(Sheet1!$C$273:$C$277) -> 20
A286: 17. There is less seafood in our waters. | G286: 17. There is less seafood in our waters.
B288: Responses
B289: Percent | C289: Count
A290: a. Strongly agree | B290: 0.8999999762 | C290: 18
A291: b. Agree | B291: 0.05000000075 | C291: 1
A292: c. Unsure | B292: 0 | C292: 0
A293: d. Disagree | B293: 0.05000000075 | C293: 1
A294: e. Strongly disagree. | B294: 0 | C294: 0
A295: Totals | B295: =SUM(Sheet1!$B$290:$B$294) -> 0.9999999776 | C295: =SUM(Sheet1!$C$290:$C$294) -> 20
A303: 18. Aquaculture farms are a good way to provide seafood. | G303: 18. Aquaculture farms are a good way to provide seafood.
B305: Responses
B306: Percent | C306: Count
A307: a. Strongly agree | B307: 0.6999999881 | C307: 14
A308: b. Agree | B308: 0.05000000075 | C308: 1
A309: c. Unsure | B309: 0.150000006 | C309: 3
A310: d. Disagree | B310: 0.1000000015 | C310: 2
A311: e. Strongly disagree | B311: 0 | C311: 0
A312: Totals | B312: =SUM(Sheet1!$B$307:$B$311) -> 0.9999999963 | C312: =SUM(Sheet1!$C$307:$C$311) -> 20
A320: 19. Which is the best type aquaculture to help your community? | G320: 19. Which is the best type aquaculture to help your community?
B322: Responses
B323: Percent | C323: Count
A324: a. Shellfish (mussels, oysters) | B324: 0 | C324: 0
A325: b. Finfish (Tilapia) | B325: 0.200000003 | C325: 4
A326: c. Invertebrates (crawfish, shrimp) | B326: 0.6499999762 | C326: 13
A327: d. More than one type. | B327: 0.150000006 | C327: 3
A328: e. There should not be any aquaculture | B328: 0 | C328: 0
A329: Totals | B329: =SUM(Sheet1!$B$324:$B$328) -> 0.9999999851 | C329: =SUM(Sheet1!$C$324:$C$328) -> 20
A337: 20. The availably of aquaculture products would improve the diet of my family. | G337: 20. The availably of aquaculture products would improve the diet of my family.
B339: Responses
B340: Percent | C340: Count
A341: a. Strongly agree | B341: 0.6499999762 | C341: 13
A342: b. Agree | B342: 0.3000000119 | C342: 6
A343: c. Unsure | B343: 0.05000000075 | C343: 1
A344: d. Disagree | B344: 0 | C344: 0
A345: e. Strongly disagree. | B345: 0 | C345: 0
A346: Totals | B346: =SUM(Sheet1!$B$341:$B$345) -> 0.9999999888 | C346: =SUM(Sheet1!$C$341:$C$345) -> 20
A354: 21. The availably of aquaculture products would improve the diet of tourists in town. | G354: 21. The availably of aquaculture products would improve the diet of tourists in town.
B356: Responses
B357: Percent | C357: Count
A358: a. Strongly agree | B358: 0.6000000238 | C358: 12
A359: b. Agree | B359: 0.25 | C359: 5
A360: c. Unsure | B360: 0.1000000015 | C360: 2
A361: d. Disagree | B361: 0.05000000075 | C361: 1
A362: e. Strongly disagree. | B362: 0 | C362: 0
A363: Totals | B363: =SUM(Sheet1!$B$358:$B$362) -> 1.000000026 | C363: =SUM(Sheet1!$C$358:$C$362) -> 20
A371: 22. The availably of aquaculture products will reduce the quality of my family’s life. | G371: 22. The availably of aquaculture products will reduce the quality of my family’s life.
B373: Responses
B374: Percent | C374: Count
A375: a. Strongly agree | B375: 0.150000006 | C375: 3
... 113 more rows
